fUST/lending_fUST_20250406
["ID","MTS","AMOUNT","RATE_DAILY","PERIOD"]
[357209110,1743895835695,-596.16,0.00027373,2]
[357209111,1743895835705,-151.0,0.00027397,7]
[357209112,1743895835714,-151.0,0.00027397,7]
[357209113,1743895835724,-150.09,0.00027397,2]
[357209114,1743895835733,-886.0,0.00027397,2]
[357209115,1743895835743,-151.0,0.00027397,7]
[357209116,1743895835753,-151.0,0.00027397,7]
[357209117,1743895835762,-197.934467,0.00027397,7]
[357209118,1743895835772,-151.0,0.00027397,7]
[357209119,1743895835781,-151.0,0.00027397,7]
[357209120,1743895835790,-151.0,0.00027397,7]
[357209121,1743895835800,-150.0,0.00027397,5]
[357209122,1743895835811,-500.0,0.00027397,5]
[357209123,1743895835819,-7319.03717743,0.000275,2]
[357209124,1743895835834,-390.40776555,0.000275,2]
[357209154,1743895838204,-500.0,0.00023797,2]
[357209155,1743895838213,-636.10459746,0.00023797,2]
[357209156,1743895838223,-500.0,0.00023811,2]
[357209157,1743895838232,-538.601,0.00023936,2]
[357209159,1743895838241,-500.0,0.00024085,2]
[357209161,1743895838250,-500.0,0.00024359,2]
[357209163,1743895838259,-160.0,0.00024628,2]
[357209164,1743895838269,-500.0,0.00024633,2]
[357209165,1743895838278,-500.0,0.00024907,2]
[357209166,1743895838287,-500.0,0.00025181,2]
[357209167,1743895838296,-500.0,0.00025455,2]
[357209168,1743895838305,-500.0,0.00025729,2]
[357209169,1743895838315,-500.0,0.00026003,2]
[357209170,1743895838324,-500.0,0.00026277,2]
[357209171,1743895838333,-500.0,0.00026551,2]
[357209172,1743895838343,-500.0,0.00026825,2]
[357209173,1743895838351,-223.0315306,0.00027083,2]
[357209174,1743895838361,-500.0,0.00027099,2]
[357209175,1743895838370,-500.0,0.00027373,2]
[357209176,1743895838379,-20786.71936759,0.000275,2]
[357209177,1743895838687,-10847.03903452,0.000275,2]
[357209178,1743895838698,-150.0,0.000275,2]
[357209179,1743895838708,-150.0,0.000275,2]
[357209180,1743895838718,-151.0,0.000275,7]
[357209181,1743895838731,-163.648187,0.000275,7]
[357209182,1743895838742,-163.648187,0.000275,7]
[357209183,1743895838752,-500.0,0.000275,2]
[357209184,1743895838761,-150.09,0.00027534,2]
[357209185,1743895838770,-886.0,0.00027534,2]
[357209186,1743895838780,-4093.07528279,0.0002759,7]
[357209187,1743895838789,-513.8,0.00027629,2]
[357209188,1743895838799,-552.35,0.00027629,2]
[357209189,1743895838808,-641.83,0.00027646,2]
[357209190,1743895838818,-596.16,0.00027647,2]
[357209191,1743895838828,-500.0,0.00027647,2]
[357209192,1743895838837,-199.82,0.00027671,2]
[357209193,1743895838848,-886.0,0.00027671,2]
[357209194,1743895838859,-150.0,0.00027673,5]
[357209195,1743895838868,-702.3148732,0.0002769,2]
[357209196,1743895838878,-6055.72661887,0.000277,2]
[357209216,1743895840385,-258.22,0.000277,2]
[357209218,1743895840400,-1158.78495745,0.000277,2]
[357209228,1743895840489,-6655.97958307,0.000277,2]
[357209512,1743895843223,-10857.65784964,0.000277,2]
[357209807,1743895846368,-29838.15451184,0.00023619,2]
[357210833,1743896757155,-488.0946285,0.00022449,2]
[357210834,1743896757178,-160.0,0.00022844,2]
[357210835,1743896757201,-261.91784516,0.00023148,2]
[357210836,1743896757223,-160.0,0.00023148,2]
[357210837,1743896757244,-929.09813502,0.00023573,2]
[357210838,1743896847449,-500.0,0.00023098,2]
[357210839,1743896847475,-161.37,0.00023609,3]
[357210840,1743896847501,-484.14,0.00023609,3]
[357210841,1743896847527,-300.0,0.00023617,2]
[357210842,1743896847552,-500.0,0.00023618,2]
[357210843,1743896847578,-295.27321822,0.00023618,2]
[357210844,1743896847604,-500.0,0.00023618,2]
[357210845,1743896847629,-500.0,0.00023618,2]
[357210846,1743896847653,-500.0,0.00023618,2]
[357210847,1743896847678,-500.0,0.00023618,2]
[357210848,1743896847704,-500.0,0.00023618,2]
[357210849,1743896847734,-500.0,0.00023618,2]
[357210850,1743896847761,-56751.52015956,0.00023619,2]
[357211431,1743897038474,-1267.16694429,0.00023573,2]
[357211433,1743897038484,-160.0,0.00023573,2]
[357211435,1743897038493,-322.74,0.00023609,3]
[357211437,1743897038503,-500.0,0.00023618,2]
[357211439,1743897038513,-500.0,0.00023618,2]
[357211441,1743897038522,-500.0,0.00023618,2]
[357211443,1743897038532,-500.0,0.00023618,2]
[357211445,1743897038541,-39797.25215209,0.00023619,2]
[357212213,1743897950137,-199.91106086,0.00022887,2]
[357212215,1743898042306,-226.45730434,0.00022887,2]
[357212216,1743898042327,-160.0,0.00023402,2]
[357212217,1743898042352,-419.20823938,0.00023402,2]
[357212218,1743898042373,-1108.77107628,0.00023419,2]
[357212219,1743898042394,-200.0,0.00023505,2]
[357212220,1743898042415,-363.76,0.00023509,3]
[357212221,1743898042436,-300.0,0.00023517,2]
[357212222,1743898042457,-500.0,0.00023518,2]
[357212223,1743898042478,-500.0,0.00023518,2]
[357212224,1743898042498,-500.0,0.00023518,2]
[357212225,1743898042519,-500.0,0.00023518,2]
[357212226,1743898042540,-558.20783664,0.00023518,2]
[357212227,1743898042562,-647.07470509,0.00023518,2]
[357212228,1743898042584,-500.0,0.00023518,2]
[357212229,1743898042605,-500.0,0.00023518,2]
[357212230,1743898042626,-505.05349894,0.00023518,2]
[357212231,1743898042648,-500.0,0.00023518,2]
[357212232,1743898042669,-514.08178727,0.00023518,2]
[357212233,1743898042689,-500.0,0.00023518,2]
[357212234,1743898042710,-500.0,0.00023518,2]
[357212235,1743898042731,-505.70032485,0.00023518,2]
[357212236,1743898042752,-1036.88721091,0.00023518,2]
[357212237,1743898042772,-514.19040845,0.00023518,2]
[357212238,1743898042793,-506.99837587,0.00023518,2]
[357212239,1743898042814,-520.18250157,0.00023518,2]
[357212240,1743898042834,-516.78744397,0.00023518,2]
[357212241,1743898042856,-645.66,0.00023518,2]
[357212242,1743898042876,-508.69387389,0.00023518,2]
[357212243,1743898042897,-515.31188255,0.00023518,2]
[357212244,1743898042917,-531.6208938,0.00023518,2]
[357212245,1743898042938,-522.75884345,0.00023518,2]
[357212246,1743898042959,-568.32,0.00023518,2]
[357212247,1743898042979,-501.49121244,0.00023518,2]
[357212248,1743898043000,-512.55147628,0.00023518,2]
[357212249,1743898043021,-506.86542952,0.00023518,2]
[357212250,1743898043042,-181.09129972,0.00023518,2]
[357212251,1743898043063,-201.98959294,0.00023518,2]
[357212252,1743898043084,-500.0,0.00023518,2]
[357212253,1743898043106,-500.0,0.00023518,2]
[357212254,1743898043143,-500.0,0.00023518,2]
[357212255,1743898043166,-500.0,0.00023518,2]
[357212256,1743898043188,-481.3530026,0.00023518,2]
[357212360,1743898238412,-815.03148052,0.00023419,2]
[357212366,1743898238469,-155.14321126,0.00023419,2]
[357212368,1743898238479,-500.0,0.00023517,2]
[357212370,1743898238489,-500.0,0.00023517,2]
[357212372,1743898238498,-249.96831143,0.00023517,2]
[357212374,1743898238507,-500.0,0.00023517,2]
[357212376,1743898238517,-500.0,0.00023517,2]
[357212378,1743898238527,-500.0,0.00023517,2]
[357212381,1743898238547,-500.0,0.00023517,2]
[357212385,1743898238558,-500.0,0.00023517,2]
[357212388,1743898238569,-500.0,0.00023517,2]
[357212391,1743898238579,-58.55986545,0.00023518,2]
[357212393,1743898238589,-500.0,0.00023518,2]
[357212395,1743898238598,-500.0,0.00023518,2]
[357212397,1743898238608,-500.0,0.00023518,2]
[357212399,1743898238618,-200.0,0.00023518,2]
[357212401,1743898238628,-1418.31199405,0.00023519,3]
[357212403,1743898238639,-23913.25027725,0.00023519,3]
[357212563,1743898243625,-628.76475564,0.00023519,3]
[357212565,1743898243635,-5211.54101972,0.00023519,2]
[357212567,1743898243647,-3983.05236013,0.00023519,2]
[357212572,1743898243679,-792.64,0.00023519,2]
[357212835,1743898246772,-2722.54020361,0.00023519,2]
[357212853,1743899134264,-5752.56391362,0.00022614,2]
[357212864,1743899244094,-300.0,0.00022613,2]
[357212865,1743899244115,-13371.48527042,0.00022614,2]
[357212883,1743899366116,-356.94524879,0.0002,2]
[357212884,1743899366138,-5775.95081596,0.00022614,2]
[357212885,1743899366158,-190.6222951,0.00023418,2]
[357212886,1743899366180,-500.0,0.00023516,2]
[357212887,1743899366201,-300.0,0.00023516,2]
[357212888,1743899366222,-500.0,0.00023516,2]
[357212889,1743899366244,-500.0,0.00023516,2]
[357212890,1743899366265,-500.0,0.00023517,2]
[357212891,1743899366288,-500.0,0.00023517,2]
[357212892,1743899366309,-513.26,0.00023517,2]
[357212893,1743899366328,-500.0,0.00023517,2]
[357212894,1743899366349,-540.11,0.00023517,2]
[357212895,1743899366369,-500.0,0.00023517,2]
[357212896,1743899366389,-500.0,0.00023517,2]
[357212897,1743899366409,-500.0,0.00023517,2]
[357212898,1743899366429,-500.0,0.00023517,2]
[357212899,1743899366452,-500.0,0.00023517,2]
[357212900,1743899366474,-239.83,0.00023517,2]
[357212901,1743899366496,-500.0,0.00023517,2]
[357212902,1743899366518,-500.0,0.00023517,2]
[357212903,1743899366543,-500.0,0.00023517,2]
[357212904,1743899366565,-500.0,0.00023517,2]
[357212905,1743899366586,-500.0,0.00023517,2]
[357212906,1743899366608,-500.0,0.00023517,2]
[357212907,1743899366631,-500.0,0.00023517,2]
[357212908,1743899366655,-516.43,0.00023517,2]
[357212909,1743899366679,-500.0,0.00023517,2]
[357212910,1743899366702,-500.0,0.00023517,2]
[357212911,1743899366723,-500.0,0.00023517,2]
[357212912,1743899366743,-500.0,0.00023517,2]
[357212913,1743899366765,-345.1,0.00023517,2]
[357212914,1743899366787,-500.0,0.00023517,2]
[357212915,1743899366807,-500.0,0.00023517,2]
[357212916,1743899366827,-500.0,0.00023517,2]
[357212917,1743899366850,-500.0,0.00023517,2]
[357212918,1743899366871,-526.51,0.00023517,2]
[357212919,1743899366892,-500.0,0.00023517,2]
[357212920,1743899366913,-500.0,0.00023517,2]
[357212921,1743899366933,-500.0,0.00023517,2]
[357212922,1743899366954,-500.0,0.00023517,2]
[357212923,1743899366976,-500.0,0.00023517,2]
[357212924,1743899366998,-500.0,0.00023517,2]
[357212925,1743899367019,-449.59,0.00023517,2]
[357212926,1743899367040,-237.06,0.00023517,2]
[357212927,1743899367061,-345.4,0.00023517,2]
[357212928,1743899367083,-643.53,0.00023517,2]
[357212929,1743899367106,-500.0,0.00023517,2]
[357212930,1743899367129,-355.09377986,0.00023517,2]
[357212974,1743899432768,-1169.91505371,0.00023418,2]
[357212975,1743899432778,-500.0,0.00023516,2]
[357212976,1743899432788,-500.0,0.00023516,2]
[357212977,1743899432798,-500.0,0.00023516,2]
[357212978,1743899432808,-500.0,0.00023516,2]
[357212979,1743899432817,-500.0,0.00023516,2]
[357212980,1743899432827,-500.0,0.00023516,2]
[357212981,1743899432836,-191.57634444,0.00023516,2]
[357212982,1743899432846,-500.0,0.00023516,2]
[357212983,1743899432857,-500.0,0.00023516,2]
[357212984,1743899432867,-500.0,0.00023516,2]
[357212985,1743899432877,-500.0,0.00023516,2]
[357212986,1743899432886,-500.0,0.00023516,2]
[357212987,1743899432896,-144.90622014,0.00023517,2]
[357212988,1743899432907,-540.58160861,0.00023517,2]
[357212989,1743899432917,-500.0,0.00023517,2]
[357212990,1743899432927,-500.0,0.00023517,2]
[357212991,1743899432937,-500.0,0.00023517,2]
[357212992,1743899432947,-500.0,0.00023517,2]
[357212993,1743899432957,-500.0,0.00023517,2]
[357212994,1743899432967,-500.0,0.00023517,2]
[357212995,1743899432976,-500.0,0.00023517,2]
[357212996,1743899432987,-500.37660583,0.00023517,2]
[357212997,1743899432996,-521.69418644,0.00023517,2]
[357212998,1743899433006,-500.0,0.00023517,2]
[357212999,1743899433016,-500.0,0.00023517,2]
[357213000,1743899433025,-500.0,0.00023517,2]
[357213001,1743899433035,-309.55,0.00023517,2]
[357213002,1743899433044,-504.32029485,0.00023517,2]
[357213003,1743899433055,-295.78,0.00023518,2]
[357213004,1743899433065,-427.08,0.00023518,2]
[357213005,1743899433076,-440.79983363,0.00023518,2]
[357213006,1743899433086,-410.73,0.00023518,2]
[357213007,1743899433097,-500.0,0.00023518,2]
[357213008,1743899433108,-523.67155021,0.00023518,2]
[357213009,1743899433118,-520.31216387,0.00023518,2]
[357213010,1743899433129,-516.91751121,0.00023518,2]
[357213011,1743899433139,-509.17697626,0.00023518,2]
[357213012,1743899433149,-500.0,0.00023518,2]
[357213013,1743899433160,-262.9011253,0.00023518,2]
[357213014,1743899433172,-508.66173035,0.00023518,2]
[357213015,1743899433182,-500.0,0.00023518,2]
[357213016,1743899433193,-516.45818109,0.00023518,2]
[357213017,1743899433203,-500.0,0.00023518,2]
[357213018,1743899433213,-500.0,0.00023518,2]
[357213019,1743899433223,-540.76957345,0.00023518,2]
[357213020,1743899433233,-512.08798033,0.00023518,2]
[357213021,1743899433244,-500.0,0.00023518,2]
[357213022,1743899433254,-525.55442736,0.00023518,2]
[357213023,1743899433264,-524.85012501,0.00023518,2]
[357213024,1743899433274,-510.72565306,0.00023518,2]
[357213025,1743899433284,-511.68162819,0.00023518,2]
[357213026,1743899433294,-502.20989369,0.00023518,2]
[357213027,1743899433304,-504.38752415,0.00023518,2]
[357213028,1743899433314,-522.73491292,0.00023518,2]
[357213029,1743899433323,-508.47547911,0.00023518,2]
[357213030,1743899433334,-500.0,0.00023518,2]
[357213031,1743899433343,-580.70899985,0.00023518,2]
[357213032,1743899433352,-500.0,0.00023518,2]
[357213033,1743899433362,-500.0,0.00023518,2]
[357213034,1743899433371,-500.0,0.00023518,2]
[357213035,1743899433381,-510.92395279,0.00023518,2]
[357213036,1743899433390,-500.0,0.00023518,2]
[357213037,1743899433400,-500.0,0.00023518,2]
[357213038,1743899433409,-515.65776438,0.00023518,2]
[357213039,1743899433419,-536.61308301,0.00023518,2]
[357213040,1743899433428,-501.7016827,0.00023518,2]
[357213041,1743899433437,-510.42305418,0.00023518,2]
[357213042,1743899433447,-500.0,0.00023518,2]
[357213043,1743899433456,-500.0,0.00023518,2]
[357213044,1743899433467,-500.0,0.00023518,2]
[357213045,1743899433477,-502.52906685,0.00023518,2]
[357213046,1743899433486,-500.0,0.00023518,2]
[357213047,1743899433496,-502.92634945,0.00023518,2]
[357213048,1743899433507,-500.0,0.00023518,2]
[357213049,1743899433516,-500.0,0.00023518,2]
[357213050,1743899433526,-500.0,0.00023518,2]
[357213051,1743899433536,-500.0,0.00023518,2]
[357213052,1743899433546,-500.0,0.00023518,2]
[357213053,1743899433555,-436.17916408,0.00023518,2]
[357213054,1743899433565,-500.0,0.00023518,2]
[357213055,1743899433575,-391.26790726,0.00023518,2]
[357213056,1743899433584,-500.0,0.00023518,2]
[357213057,1743899433594,-366.36,0.00023518,2]
[357213058,1743899433604,-200.0,0.00023518,2]
[357213059,1743899433614,-500.0,0.00023518,2]
[357213060,1743899433624,-500.0,0.00023673,2]
[357213061,1743899433633,-500.0,0.00023673,2]
[357213062,1743899433643,-500.0,0.00023673,2]
[357213063,1743899433653,-610.16701627,0.00023673,2]
[357213064,1743899433662,-500.0,0.00023673,2]
[357213065,1743899433672,-500.0,0.00023673,2]
[357213066,1743899433681,-339.44132475,0.00023673,2]
[357213067,1743899433691,-500.0,0.00023691,2]
[357213068,1743899433701,-514.49388746,0.00023691,2]
[357213069,1743899433711,-12271.00751644,0.00023692,3]
[357213070,1743899433722,-709.15599703,0.00023692,3]
[357213071,1743899433732,-104126.49434684,0.00023692,2]
[357213072,1743899433744,-19320.78355003,0.00023692,2]
[357213073,1743899433760,-500.0,0.0002379,2]
[357213074,1743899433776,-500.0,0.0002379,2]
[357213075,1743899433787,-500.0,0.0002379,2]
[357213076,1743899433984,-500.0,0.0002379,2]
[357213077,1743899433995,-500.0,0.0002379,2]
[357213078,1743899434006,-500.0,0.0002379,2]
[357213079,1743899434016,-500.0,0.0002379,2]
[357213080,1743899434027,-500.0,0.0002379,2]
[357213081,1743899434037,-500.0,0.0002379,2]
[357213082,1743899434047,-500.0,0.0002379,2]
[357213083,1743899434057,-500.0,0.0002379,2]
[357213084,1743899434067,-500.0,0.0002379,2]
[357213085,1743899434077,-500.0,0.0002379,2]
[357213086,1743899434087,-487.28,0.00023791,2]
[357213087,1743899434096,-220.39,0.00023791,2]
[357213088,1743899434106,-500.0,0.00023791,2]
[357213089,1743899434116,-500.0,0.00023791,2]
[357213090,1743899434126,-500.0,0.00023791,2]
[357213091,1743899434136,-500.0,0.00023791,2]
[357213092,1743899434145,-500.0,0.00023791,2]
[357213093,1743899434157,-500.0,0.00023791,2]
[357213094,1743899434170,-500.0,0.00023791,2]
[357213095,1743899434179,-232.05,0.00023791,2]
[357213096,1743899434189,-457.55,0.00023791,2]
[357213097,1743899434199,-500.0,0.00023791,2]
[357213098,1743899434209,-500.0,0.00023791,2]
[357213099,1743899434220,-388.21,0.00023791,2]
[357213100,1743899434230,-500.0,0.00023791,2]
[357213101,1743899434240,-500.0,0.00023791,2]
[357213102,1743899434250,-219.84,0.00023791,2]
[357213103,1743899434265,-500.0,0.00023791,2]
[357213104,1743899434275,-500.0,0.00023791,2]
[357213105,1743899434284,-500.0,0.00023791,2]
[357213106,1743899434294,-500.0,0.00023791,2]
[357213107,1743899434303,-500.0,0.00023791,2]
[357213108,1743899434313,-500.0,0.00023791,2]
[357213109,1743899434323,-500.0,0.00023791,2]
[357213110,1743899434334,-500.0,0.00023791,2]
[357213111,1743899434344,-281.92,0.00023792,2]
[357213112,1743899434353,-376.48,0.00023792,2]
[357213113,1743899434363,-500.0,0.00023792,2]
[357213114,1743899434373,-500.0,0.00023792,2]
[357213115,1743899434382,-500.0,0.00023792,2]
[357213116,1743899434392,-500.0,0.00023792,2]
[357213117,1743899434401,-190.92,0.00023792,2]
[357213118,1743899434411,-500.0,0.00023792,2]
[357213119,1743899434421,-724.46285181,0.000239,5]
[357213132,1743899438647,-500.0,0.00023516,2]
[357213133,1743899438656,-500.0,0.00023516,2]
[357213134,1743899438666,-500.0,0.0002379,2]
[357213135,1743899438675,-500.0,0.00023899,2]
[357213136,1743899438684,-178.14205196,0.00023899,2]
[357213137,1743899438694,-3024.62757904,0.000239,5]
[357213138,1743899438703,-500.0,0.00024064,2]
[357213139,1743899438713,-500.0,0.00024064,2]
[357213140,1743899438722,-500.0,0.00024064,2]
[357213141,1743899438732,-500.0,0.00024064,2]
[357213142,1743899438741,-174.0,0.00024064,2]
[357213143,1743899438752,-500.0,0.00024064,2]
[357213144,1743899438762,-500.0,0.00024064,2]
[357213145,1743899438772,-260.35,0.00024064,2]
[357213146,1743899438781,-205.87,0.00024065,2]
[357213147,1743899438791,-365.71,0.00024065,2]
[357213148,1743899438800,-351.63,0.00024065,2]
[357213149,1743899438810,-500.0,0.00024065,2]
[357213150,1743899438819,-500.0,0.00024065,2]
[357213151,1743899438829,-500.0,0.00024065,2]
[357213152,1743899438838,-500.0,0.00024065,2]
[357213153,1743899438848,-500.0,0.00024065,2]
[357213154,1743899438857,-500.0,0.00024065,2]
[357213155,1743899438867,-500.0,0.00024065,2]
[357213156,1743899438877,-500.0,0.00024065,2]
[357213157,1743899438887,-500.0,0.00024065,2]
[357213158,1743899438896,-500.0,0.00024065,2]
[357213159,1743899438906,-488.94,0.00024065,2]
[357213160,1743899438915,-319.42,0.00024065,2]
[357213161,1743899438924,-500.0,0.00024065,2]
[357213162,1743899438934,-500.0,0.00024065,2]
[357213163,1743899438944,-500.0,0.00024065,2]
[357213164,1743899438954,-500.0,0.00024066,2]
[357213165,1743899438963,-590.84,0.00024066,2]
[357213166,1743899438973,-500.0,0.00024066,2]
[357213167,1743899438983,-500.0,0.00024066,2]
[357213168,1743899438993,-500.0,0.00024066,2]
[357213169,1743899439003,-713.58,0.000241,2]
[357213170,1743899439014,-500.0,0.00024154,2]
[357213171,1743899439024,-500.0,0.00024338,2]
[357213172,1743899439034,-506.2,0.00024338,2]
[357213173,1743899439043,-500.0,0.00024338,2]
[357213174,1743899439054,-500.0,0.00024338,2]
[357213175,1743899439063,-500.0,0.00024338,2]
[357213176,1743899439074,-500.0,0.00024339,2]
[357213177,1743899439084,-175.66,0.00024339,2]
[357213178,1743899439094,-491.74678603,0.00024339,2]
[357213179,1743899439104,-500.0,0.00024339,2]
[357213180,1743899439113,-500.0,0.00024339,2]
[357213181,1743899439123,-500.0,0.00024339,2]
[357213182,1743899439132,-500.0,0.00024339,2]
[357213183,1743899439142,-500.0,0.00024339,2]
[357213184,1743899439151,-522.16,0.0002434,2]
[357213185,1743899439162,-267.08,0.0002434,2]
[357213187,1743899439172,-500.0,0.0002434,2]
[357213188,1743899439185,-3749.09043079,0.00024452,5]
[357213189,1743899439194,-500.0,0.00024612,2]
[357213190,1743899439203,-500.0,0.00024612,2]
[357213191,1743899439212,-500.0,0.00024612,2]
[357213192,1743899439222,-500.0,0.00024613,2]
[357213193,1743899439232,-500.0,0.00024613,2]
[357213194,1743899439241,-500.0,0.00024613,2]
[357213195,1743899439251,-234.12,0.000247,14]
[357213196,1743899439260,-1520.41,0.000248,7]
[357213197,1743899439269,-190.6222951,0.00024804,2]
[357213198,1743899439280,-200.0,0.00024885,2]
[357213199,1743899439289,-500.0,0.00024886,2]
[357213200,1743899439298,-500.0,0.00024886,2]
[357213201,1743899439308,-500.0,0.00024886,2]
[357213202,1743899439317,-500.0,0.00024887,2]
[357213203,1743899439326,-500.0,0.00024887,2]
[357213204,1743899439336,-500.0,0.00024887,2]
[357213205,1743899439345,-200.0,0.00024888,2]
[357213206,1743899439355,-791.29,0.000249,14]
[357213207,1743899439365,-569.13,0.000249,14]
[357213208,1743899439375,-339.1,0.000249,14]
[357213209,1743899439384,-161836.7664212,0.000249,2]
[357213210,1743899440084,-1299.0,0.000249,2]
[357213236,1743899443645,-151.0,0.00023,2]
[357213237,1743899443655,-3424.36067349,0.000249,2]
[357213245,1743899446931,-3141.14957164,0.000249,2]
[357213246,1743899446943,-695.44042931,0.000249,2]
[357213261,1743900350108,-160.0,0.00022526,2]
[357213262,1743900350130,-1763.6121078,0.00022531,2]
[357213263,1743900350152,-450.84383137,0.00022556,2]
[357213264,1743900435092,-391.70934383,0.00022556,2]
[357213265,1743900435114,-309.681315,0.00023069,2]
[357213266,1743900435139,-1139.81293883,0.00023416,2]
[357213267,1743900435160,-500.0,0.00023515,2]
[357213268,1743900435180,-510.85635541,0.00023515,2]
[357213269,1743900435201,-268.64,0.00023515,2]
[357213270,1743900435223,-38607.88966605,0.00023516,2]
[357213271,1743900445399,-450.0,0.00023516,2]
[357213280,1743900573107,-729.16666667,0.00023508,2]
[357213281,1743900573130,-500.0,0.00023515,2]
[357213282,1743900573152,-500.0,0.00023515,2]
[357213283,1743900573175,-500.0,0.00023515,2]
[357213284,1743900573198,-666.61,0.00023515,2]
[357213285,1743900573220,-590.84,0.00023515,2]
[357213286,1743900573243,-500.0,0.00023515,2]
[357213287,1743900573265,-174.0,0.00023515,2]
[357213288,1743900573287,-500.0,0.00023515,2]
[357213289,1743900573311,-500.0,0.00023515,2]
[357213290,1743900573332,-4317.64913388,0.00023516,2]
[357213291,1743900573353,-500.0,0.00023516,2]
[357213292,1743900573382,-500.0,0.00023516,2]
[357213293,1743900573407,-500.0,0.00023516,2]
[357213294,1743900573428,-500.0,0.00023516,2]
[357213295,1743900573449,-500.0,0.00023516,2]
[357213296,1743900573474,-500.0,0.00023516,2]
[357213297,1743900573495,-500.0,0.00023516,2]
[357213298,1743900573516,-500.0,0.00023516,2]
[357213299,1743900573537,-500.0,0.00023516,2]
[357213300,1743900573558,-500.0,0.00023516,2]
[357213301,1743900573580,-500.0,0.00023516,2]
[357213302,1743900573601,-502.58306749,0.00023516,2]
[357213303,1743900573624,-459.5626864,0.00023516,2]
[357213304,1743900573646,-500.0,0.00023516,2]
[357213305,1743900573668,-420.94233144,0.00023516,2]
[357213324,1743900632055,-500.0,0.00023515,2]
[357213325,1743900632065,-41.20887216,0.00023515,2]
[357213326,1743900632163,-458.79112784,0.00023515,2]
[357213327,1743900632173,-500.0,0.00023515,2]
[357213328,1743900632183,-874.43,0.00023515,2]
[357213329,1743900632192,-500.0,0.00023515,2]
[357213330,1743900632201,-500.0,0.00023515,2]
[357213331,1743900632210,-500.0,0.00023515,2]
[357213332,1743900632219,-220.83,0.00023515,2]
[357213334,1743900632229,-908.11,0.00023515,2]
[357213335,1743900632237,-500.0,0.00023515,2]
[357213336,1743900632246,-187.20895426,0.00023516,2]
[357213337,1743900632257,-500.0,0.00023516,2]
[357213338,1743900632266,-500.0,0.00023516,2]
[357213339,1743900632275,-500.0,0.00023516,2]
[357213340,1743900632284,-500.0,0.00023516,2]
[357213341,1743900632293,-205.87,0.00023516,2]
[357213342,1743900632302,-500.0,0.00023516,2]
[357213343,1743900632311,-500.0,0.00023516,2]
[357213344,1743900632320,-500.0,0.00023516,2]
[357213345,1743900632329,-500.0,0.00023516,2]
[357213346,1743900632338,-500.0,0.00023516,2]
[357213347,1743900632347,-500.0,0.00023516,2]
[357213348,1743900632356,-365.71,0.00023516,2]
[357213349,1743900632365,-540.6558624,0.00023516,2]
[357213350,1743900632374,-500.0,0.00023516,2]
[357213351,1743900632384,-351.63,0.00023516,2]
[357213352,1743900632393,-500.0,0.00023516,2]
[357213353,1743900632402,-500.0,0.00023516,2]
[357213354,1743900632411,-500.0,0.00023516,2]
[357213355,1743900632420,-500.0,0.00023516,2]
[357213356,1743900632429,-500.0,0.00023516,2]